fUST/lending_fUST_20260531
["ID","MTS","AMOUNT","RATE_DAILY","PERIOD"]
[423571359,1780241451000,-156.02,0.00020963,2]
[423571357,1780241451000,-693.47883747,0.00020953,2]
[423571360,1780241451000,-4259.87339779,0.00020964,2]
[423571350,1780241451000,-151.66,0.000209,2]
[423571355,1780241451000,-158.64,0.0002093,2]
[423571353,1780241451000,-156.02,0.00020913,2]
[423571352,1780241451000,-409.4,0.0002091,2]
[423571343,1780241451000,-409.4,0.0002086,2]
[423571361,1780241451000,-1034.39,0.00020968,2]
[423571356,1780241451000,-427.26,0.0002095,2]
[423571363,1780241451000,-427.26,0.00021,2]
[423571369,1780241451000,-3000.0,0.0002101,2]
[423571367,1780241451000,-730.0,0.00021,2]
[423571364,1780241451000,-3000.0,0.00021,2]
[423571366,1780241451000,-151.66,0.00021,2]
[423571374,1780241451000,-3000.0,0.0002103,2]
[423571375,1780241451000,-3000.0,0.0002104,2]
[423571373,1780241451000,-158.64,0.0002103,2]
[423571376,1780241451000,-427.26,0.0002105,2]
[423571379,1780241451000,-151.0,0.0002105,2]
[423571372,1780241451000,-3000.0,0.0002102,2]
[423571380,1780241451000,-151.0,0.0002105,2]
[423571368,1780241451000,-409.4,0.0002101,2]
[423571371,1780241451000,-1034.42036862,0.00021018,2]
[423571362,1780241451000,-158.64,0.0002098,2]
[423571347,1780241451000,-426.10455443,0.00020875,2]
[423571330,1780241451000,-3902.49,0.00020797,2]
[423571345,1780241451000,-156.02,0.00020863,2]
[423571377,1780241451000,-3000.0,0.0002105,2]
[423571326,1780241451000,-158.64,0.0002078,2]
[423571323,1780241451000,-190.28805403,0.00020752,2]
[423571325,1780241451000,-1034.39,0.00020768,2]
[423571320,1780241451000,-1034.39,0.00020718,2]
[423571322,1780241451000,-158.49,0.00020733,2]
[423571324,1780241451000,-156.02,0.00020763,2]
[423571327,1780241451000,-158.49,0.00020783,2]
[423571329,1780241451000,-3902.47,0.00020797,2]
[423571328,1780241451000,-3902.47,0.00020797,2]
[423571338,1780241451000,-156.02,0.00020813,2]
[423571334,1780241451000,-152.51,0.000208,2]
[423571336,1780241451000,-151.66,0.000208,2]
[423571342,1780241451000,-158.49027017,0.00020833,2]
[423571331,1780241451000,-3725.09,0.00020797,7]
[423571335,1780241451000,-151.66,0.000208,2]
[423571339,1780241451000,-1034.39,0.00020818,2]
[423571332,1780241451000,-3725.09,0.00020797,7]
[423571333,1780241451000,-2128.62,0.00020797,2]
[423571337,1780241451000,-1047.44301084,0.000208,2]
[423571340,1780241451000,-4861.11,0.00020822,2]
[423571341,1780241451000,-158.64,0.0002083,2]
[423571351,1780241451000,-3613.38652243,0.00020907,2]
[423571354,1780241451000,-1034.39,0.00020918,2]
[423571344,1780241451000,-1120.86930449,0.00020861,2]
[423571348,1780241451000,-158.64,0.0002088,2]
[423571349,1780241451000,-151.66,0.000209,2]
[423571346,1780241451000,-1034.39,0.00020868,2]
[423571370,1780241451000,-156.02,0.00021013,2]
[423571321,1780241451000,-158.64,0.0002073,2]
[423571381,1780241451000,-287.167591,0.0002105,2]
[423571414,1780241451000,-305.28587243,0.00021072,2]
[423571420,1780241451000,-165.0,0.00021098,120]
[423571418,1780241451000,-3000.0,0.0002109,2]
[423571415,1780241451000,-158.64,0.0002108,2]
[423571417,1780241451000,-160.0,0.00021087,4]
[423571426,1780241451000,-1762.252,0.000211,2]
[423571424,1780241451000,-1990.3,0.000211,2]
[423571419,1780241451000,-4861.11,0.00021096,2]
[423571421,1780241451000,-427.26,0.000211,2]
[423571423,1780241451000,-1203.4187,0.000211,2]
[423571416,1780241451000,-3000.0,0.0002108,2]
[423571425,1780241451000,-1037.7765,0.000211,2]
[423571427,1780241451000,-1762.25,0.000211,2]
[423571422,1780241451000,-390.4527,0.000211,2]
[423571429,1780241451000,-1987.35,0.000211,2]
[423571430,1780241451000,-1742.318,0.000211,2]
[423571431,1780241451000,-1742.318,0.000211,2]
[423571428,1780241451000,-385.0655,0.000211,2]
[423571433,1780241451000,-387.21,0.000211,2]
[423571438,1780241451000,-1742.318,0.000211,2]
[423571435,1780241451000,-1990.3,0.000211,2]
[423571436,1780241451000,-271.53374719,0.000211,2]
[423571432,1780241451000,-1742.31,0.000211,2]
[423571434,1780241451000,-1203.4187,0.000211,2]
[423571437,1780241451000,-286.68912015,0.000211,2]
[423571440,1780241451000,-1742.31,0.000211,2]
[423571378,1780241451000,-151.0,0.0002105,2]
[423571410,1780241451000,-272.855485,0.0002106,2]
[423571409,1780241451000,-272.855485,0.0002106,2]
[423571439,1780241451000,-1742.318,0.000211,2]
[423571408,1780241451000,-272.855485,0.0002106,2]
[423571382,1780241451000,-409.4,0.0002106,2]
[423571383,1780241451000,-3000.0,0.0002106,2]
[423571385,1780241451000,-151.0,0.0002106,2]
[423571386,1780241451000,-151.0,0.0002106,2]
[423571384,1780241451000,-151.0,0.0002106,2]
[423571387,1780241451000,-151.0,0.0002106,2]
[423571389,1780241451000,-151.0,0.0002106,2]
[423571388,1780241451000,-151.0,0.0002106,2]
[423571411,1780241451000,-272.855485,0.0002106,2]
[423571391,1780241451000,-151.0,0.0002106,2]
[423571400,1780241451000,-335.114378,0.0002106,2]
[423571390,1780241451000,-261.909232,0.0002106,2]
[423571393,1780241451000,-335.114378,0.0002106,2]
[423571392,1780241451000,-151.0,0.0002106,2]
[423571399,1780241451000,-181.875987,0.0002106,2]
[423571394,1780241451000,-151.0,0.0002106,2]
[423571405,1780241451000,-500.0,0.0002106,2]
[423571395,1780241451000,-335.114378,0.0002106,2]
[423571407,1780241451000,-151.0,0.0002106,2]
[423571406,1780241451000,-500.0,0.0002106,2]
[423571404,1780241451000,-500.0,0.0002106,2]
[423571403,1780241451000,-500.0,0.0002106,2]
[423571401,1780241451000,-181.875987,0.0002106,2]
[423571412,1780241451000,-156.02,0.00021063,2]
[423571402,1780241451000,-181.875987,0.0002106,2]
[423571398,1780241451000,-335.114378,0.0002106,2]
[423571397,1780241451000,-181.875987,0.0002106,2]
[423571396,1780241451000,-167.40875,0.0002106,2]
[423571413,1780241451000,-3000.0,0.0002107,2]
[423571481,1780241452000,-1714.686641,0.0002111,2]
[423571485,1780241452000,-415.610205,0.0002111,2]
[423571492,1780241452000,-3000.0,0.0002112,2]
[423571493,1780241452000,-158.64,0.0002113,2]
[423571476,1780241452000,-151.0,0.0002111,2]
[423571470,1780241452000,-489.8765,0.0002111,2]
[423571478,1780241452000,-226.985954,0.0002111,2]
[423571474,1780241452000,-151.0,0.0002111,2]
[423571468,1780241452000,-500.0,0.0002111,2]
[423571479,1780241452000,-1714.686641,0.0002111,2]
[423571471,1780241452000,-489.8765,0.0002111,2]
[423571484,1780241452000,-415.610205,0.0002111,2]
[423571505,1780241452000,-500.0,0.00021199,2]
[423571480,1780241452000,-1714.686641,0.0002111,2]
[423571491,1780241452000,-156.02,0.00021113,2]
[423571488,1780241452000,-249.463395,0.0002111,2]
[423571486,1780241452000,-415.610205,0.0002111,2]
[423571489,1780241452000,-249.463395,0.0002111,2]
[423571487,1780241452000,-249.463395,0.0002111,2]
[423571483,1780241452000,-415.610205,0.0002111,2]
[423571490,1780241452000,-249.463395,0.0002111,2]
[423571495,1780241452000,-3000.0,0.0002114,2]
[423571500,1780241452000,-156.02,0.00021163,2]
[423571504,1780241452000,-3000.0,0.0002119,2]
[423571503,1780241452000,-3000.0,0.0002118,2]
[423571472,1780241452000,-489.8765,0.0002111,2]
[423571482,1780241452000,-1714.686641,0.0002111,2]
[423571469,1780241452000,-489.8765,0.0002111,2]
[423571458,1780241452000,-409.4,0.0002111,2]
[423571473,1780241452000,-151.0,0.0002111,2]
[423571494,1780241452000,-3000.0,0.0002113,2]
[423571443,1780241452000,-151.66,0.000211,2]
[423571447,1780241452000,-311.190034,0.000211,2]
[423571453,1780241452000,-223.093656,0.000211,2]
[423571448,1780241452000,-311.190034,0.000211,2]
[423571452,1780241452000,-151.0,0.000211,2]
[423571449,1780241452000,-311.190034,0.000211,2]
[423571445,1780241452000,-1106.6357,0.000211,2]
[423571442,1780241452000,-3000.0,0.000211,2]
[423571444,1780241452000,-151.66,0.000211,2]
[423571451,1780241452000,-151.0,0.000211,2]
[423571446,1780241452000,-238.11195034,0.000211,2]
[423571450,1780241452000,-311.190034,0.000211,2]
[423571455,1780241452000,-223.093656,0.000211,2]
[423571454,1780241452000,-223.093656,0.000211,2]
[423571457,1780241452000,-162.44653268,0.00021107,2]
[423571464,1780241452000,-191.087386,0.0002111,2]
[423571456,1780241452000,-223.093656,0.000211,2]
[423571465,1780241452000,-500.0,0.0002111,2]
[423571466,1780241452000,-500.0,0.0002111,2]
[423571463,1780241452000,-191.087386,0.0002111,2]
[423571467,1780241452000,-500.0,0.0002111,2]
[423571460,1780241452000,-194.04909,0.0002111,2]
[423571459,1780241452000,-3000.0,0.0002111,2]
[423571462,1780241452000,-191.087386,0.0002111,2]
[423571461,1780241452000,-191.087386,0.0002111,2]
[423571475,1780241452000,-151.0,0.0002111,2]
[423571477,1780241452000,-151.0,0.0002111,2]
[423571499,1780241452000,-3000.0,0.0002116,2]
[423571441,1780241452000,-152.51,0.000211,2]
[423571496,1780241452000,-427.26,0.0002115,2]
[423571535,1780241452000,-3000.0,0.0002132,2]
[423571533,1780241452000,-3000.0,0.0002131,2]
[423571538,1780241452000,-730.0,0.00021341,30]
[423571548,1780241452000,-3000.0,0.0002138,2]
[423571549,1780241452000,-3000.0,0.0002139,2]
[423571537,1780241452000,-3000.0,0.0002134,2]
[423571540,1780241452000,-427.26,0.0002135,2]
[423571539,1780241452000,-154.0,0.00021341,30]
[423571542,1780241452000,-409.4,0.0002136,2]
[423571541,1780241452000,-3000.0,0.0002135,2]
[423571543,1780241452000,-3000.0,0.0002136,2]
[423571546,1780241452000,-4861.11,0.0002137,2]
[423571545,1780241452000,-151.0,0.00021365,6]
[423571544,1780241452000,-156.21480024,0.00021363,2]
[423571547,1780241452000,-3000.0,0.0002137,2]
[423571551,1780241452000,-3000.0,0.000214,2]
[423571561,1780241452000,-427.26,0.000215,2]
[423571550,1780241452000,-427.26,0.000214,2]
[423571552,1780241452000,-151.66,0.000214,2]
[423571553,1780241452000,-151.66,0.000214,2]
[423571556,1780241452000,-246.0,0.0002141,2]
[423571559,1780241452000,-427.26,0.0002145,2]
[423571560,1780241452000,-409.4,0.0002146,2]
[423571554,1780241452000,-409.4,0.0002141,2]
[423571555,1780241452000,-3000.0,0.0002141,2]
[423571558,1780241452000,-3634.935069,0.0002143,2]
[423571557,1780241452000,-3000.0,0.0002142,2]
[423571534,1780241452000,-156.02,0.00021313,2]
[423571536,1780241452000,-3000.0,0.0002133,2]
[423571502,1780241452000,-158.64,0.0002118,2]
[423571526,1780241452000,-3000.0,0.0002129,2]
[423571501,1780241452000,-3000.0,0.0002117,2]
[423571497,1780241452000,-3000.0,0.0002115,2]
[423571498,1780241452000,-409.4,0.0002116,2]
[423571510,1780241452000,-409.4,0.0002121,2]
[423571506,1780241452000,-427.26,0.000212,2]
[423571516,1780241452000,-3000.0,0.0002124,2]
[423571509,1780241452000,-151.66,0.000212,2]
[423571519,1780241452000,-3000.0,0.0002125,2]
[423571517,1780241452000,-6183.65246075,0.00021245,2]
[423571507,1780241452000,-3000.0,0.000212,2]
[423571508,1780241452000,-151.66,0.000212,2]
[423571511,1780241452000,-3000.0,0.0002121,2]
[423571512,1780241452000,-156.02,0.00021213,2]
[423571513,1780241452000,-3000.0,0.0002122,2]
[423571515,1780241452000,-3000.0,0.0002123,2]
[423571518,1780241452000,-427.26,0.0002125,2]
[423571514,1780241452000,-158.70381343,0.0002123,2]
[423571530,1780241452000,-151.66,0.000213,2]
[423571525,1780241452000,-3000.0,0.0002128,2]
[423571521,1780241452000,-3000.0,0.0002126,2]
[423571527,1780241452000,-427.26,0.000213,2]
[423571522,1780241452000,-156.02,0.00021263,2]
[423571528,1780241452000,-152.51,0.000213,2]
[423571523,1780241452000,-194.0,0.00021268,120]
[423571532,1780241452000,-409.4,0.0002131,2]
[423571531,1780241452000,-151.66,0.000213,2]
[423571524,1780241452000,-3000.0,0.0002127,2]
[423571520,1780241452000,-409.4,0.0002126,2]
[423571529,1780241452000,-3000.0,0.000213,2]
[423571612,1780241453000,-191.087386,0.00022,2]
[423571611,1780241453000,-191.087386,0.00022,2]
[423571604,1780241453000,-108230.85604595,0.00022,2]
[423571610,1780241453000,-191.087386,0.00022,2]
[423571595,1780241453000,-151.66,0.000219,2]
[423571599,1780241453000,-1004.928497,0.00021918,2]
[423571591,1780241453000,-151.66,0.000218,2]
[423571597,1780241453000,-151.0,0.00021918,2]
[423571592,1780241453000,-409.4138609,0.0002181,2]
[423571594,1780241453000,-427.26,0.000219,2]
[423571598,1780241453000,-166.588353,0.00021918,2]
[423571596,1780241453000,-151.66,0.000219,2]
[423571606,1780241453000,-151.66,0.00022,2]
[423571616,1780241453000,-500.0,0.00022,2]
[423571609,1780241453000,-191.087386,0.00022,2]
[423571613,1780241453000,-500.0,0.00022,2]
[423571602,1780241453000,-427.26,0.0002195,7]
[423571603,1780241453000,-12.59704057,0.00022,120]
[423571608,1780241453000,-730.0,0.00022,2]
[423571614,1780241453000,-500.0,0.00022,2]
[423571605,1780241453000,-427.26,0.00022,7]
[423571615,1780241453000,-500.0,0.00022,2]
[423571618,1780241453000,-489.8765,0.00022,2]
[423571619,1780241453000,-489.8765,0.00022,2]
[423571617,1780241453000,-489.8765,0.00022,2]
[423571625,1780241453000,-151.0,0.00022,2]
[423571601,1780241453000,-155.0,0.00021918,6]
[423571607,1780241453000,-151.66,0.00022,2]
[423571593,1780241453000,-427.26,0.0002185,2]
[423571576,1780241453000,-1723.27164699,0.0002165,2]
[423571590,1780241453000,-151.66,0.000218,2]
[423571620,1780241453000,-489.8765,0.00022,2]
[423571564,1780241453000,-409.4,0.0002151,2]
[423571575,1780241453000,-427.26,0.0002165,2]
[423571563,1780241453000,-151.66,0.000215,2]
[423571574,1780241453000,-4861.11,0.00021644,2]
[423571571,1780241453000,-151.66,0.000216,2]
[423571567,1780241453000,-614.0,0.00021573,7]
[423571565,1780241453000,-427.26,0.0002155,2]
[423571566,1780241453000,-409.4,0.0002156,2]
[423571573,1780241453000,-409.4,0.0002161,2]
[423571569,1780241453000,-152.51,0.000216,2]
[423571568,1780241453000,-427.26,0.000216,2]
[423571572,1780241453000,-150.0,0.000216,2]
[423571570,1780241453000,-151.66,0.000216,2]
[423571581,1780241453000,-154.0,0.00021682,120]
[423571585,1780241453000,-409.4,0.0002171,2]
[423571579,1780241453000,-163.13825468,0.00021666,7]
[423571578,1780241453000,-204.78842502,0.00021665,7]
[423571587,1780241453000,-409.4,0.0002176,2]
[423571577,1780241453000,-409.4,0.0002166,2]
[423571583,1780241453000,-151.66,0.000217,2]
[423571584,1780241453000,-151.66,0.000217,2]
[423571582,1780241453000,-427.26,0.000217,2]
[423571586,1780241453000,-427.26,0.0002175,2]
[423571588,1780241453000,-427.26,0.000218,2]
[423571580,1780241453000,-730.0,0.00021682,120]
[423571589,1780241453000,-152.51,0.000218,2]
[423571600,1780241453000,-4861.11,0.00021918,2]
[423571562,1780241453000,-151.66,0.000215,2]
[423571621,1780241453000,-151.0,0.00022,2]
[423571623,1780241453000,-152.973126,0.00022,2]
[423571664,1780241453000,-415.610205,0.00022,2]
[423571655,1780241453000,-272.855485,0.00022,2]
[423571656,1780241453000,-272.855485,0.00022,2]
[423571660,1780241453000,-1714.686641,0.00022,2]
[423571662,1780241453000,-415.610205,0.00022,2]
[423571659,1780241453000,-1714.686641,0.00022,2]
[423571658,1780241453000,-1714.686641,0.00022,2]
[423571663,1780241453000,-415.610205,0.00022,2]
[423571661,1780241453000,-1714.686641,0.00022,2]
[423571657,1780241453000,-272.855489,0.00022,2]
[423571668,1780241453000,-223.093656,0.00022,2]
[423571671,1780241453000,-249.463395,0.00022,2]
[423571669,1780241453000,-249.463395,0.00022,2]
[423571667,1780241453000,-249.463395,0.00022,2]
[423571670,1780241453000,-223.093656,0.00022,2]
[423571673,1780241453000,-223.093655,0.00022,2]
[423571674,1780241453000,-151.0,0.00022,2]
[423571672,1780241453000,-223.093656,0.00022,2]
[423571676,1780241453000,-151.0,0.00022,2]
[423571675,1780241453000,-151.0,0.00022,2]
[423571677,1780241453000,-1036.0764176,0.00022,2]
[423571678,1780241453000,-497.74,0.00022022,7]
[423571683,1780241453000,-152.51,0.000221,2]
[423571680,1780241453000,-427.26,0.0002205,7]
[423571682,1780241453000,-427.26,0.000221,7]
[423571681,1780241453000,-497.74,0.00022072,7]
[423571624,1780241453000,-151.0,0.00022,2]
[423571665,1780241453000,-415.610205,0.00022,2]
[423571666,1780241453000,-249.463395,0.00022,2]
[423571679,1780241453000,-160.0,0.00022037,5]
[423571654,1780241453000,-272.855485,0.00022,2]
[423571653,1780241453000,-151.0,0.00022,2]
[423571634,1780241453000,-151.0,0.00022,2]
[423571627,1780241453000,-311.190034,0.00022,2]
[423571636,1780241453000,-151.0,0.00022,2]
[423571628,1780241453000,-311.190034,0.00022,2]
[423571630,1780241453000,-151.0,0.00022,2]
[423571637,1780241453000,-151.0,0.00022,2]
[423571626,1780241453000,-311.190034,0.00022,2]
[423571632,1780241453000,-151.0,0.00022,2]
[423571631,1780241453000,-151.0,0.00022,2]
[423571633,1780241453000,-151.0,0.00022,2]
[423571638,1780241453000,-151.0,0.00022,2]
[423571635,1780241453000,-151.0,0.00022,2]
[423571629,1780241453000,-311.190034,0.00022,2]
[423571622,1780241453000,-151.0,0.00022,2]
[423571641,1780241453000,-151.0,0.00022,2]
[423571639,1780241453000,-151.0,0.00022,2]
[423571648,1780241453000,-181.875979,0.00022,2]
[423571652,1780241453000,-500.0,0.00022,2]
[423571642,1780241453000,-335.114378,0.00022,2]
[423571643,1780241453000,-181.875987,0.00022,2]
[423571646,1780241453000,-335.114374,0.00022,2]
[423571649,1780241453000,-500.0,0.00022,2]
[423571644,1780241453000,-335.114378,0.00022,2]
[423571651,1780241453000,-500.0,0.00022,2]
[423571647,1780241453000,-181.875987,0.00022,2]
[423571645,1780241453000,-181.875987,0.00022,2]
[423571640,1780241453000,-335.114378,0.00022,2]
[423571650,1780241453000,-500.0,0.00022,2]
[423571723,1780241454000,-427.26,0.0002245,7]
[423571721,1780241454000,-497.74,0.00022422,7]
[423571720,1780241454000,-151.66,0.000224,2]
[423571718,1780241454000,-1422.96,0.000224,2]
[423571722,1780241454000,-185.0,0.0002243,2]
[423571719,1780241454000,-151.66,0.000224,2]
[423571725,1780241454000,-497.74,0.00022472,7]
[423571717,1780241454000,-1422.963,0.000224,2]
[423571713,1780241454000,-303.03,0.000224,2]
[423571732,1780241454000,-497.74,0.00022522,7]
[423571724,1780241454000,-4861.21,0.00022466,2]
[423571716,1780241454000,-1422.963,0.000224,2]
[423571735,1780241454000,-427.26,0.000226,7]
[423571730,1780241454000,-492.0,0.000225,10]
[423571733,1780241454000,-427.26,0.0002255,7]
[423571728,1780241454000,-151.66,0.000225,2]
[423571729,1780241454000,-1000.0,0.000225,10]
[423571737,1780241454000,-151.66,0.000226,2]
[423571743,1780241454000,-154.0,0.00022682,120]
[423571731,1780241454000,-162.70404441,0.000225,2]
[423571727,1780241454000,-151.66,0.000225,2]
[423571734,1780241454000,-497.74,0.00022572,7]
[423571744,1780241454000,-164.0,0.000227,120]
[423571746,1780241454000,-753.49142917,0.00022953,2]
[423571747,1780241454000,-160.0,0.00022986,6]
[423571715,1780241454000,-1712.0951,0.000224,2]
[423571726,1780241454000,-427.26,0.000225,7]
[423571714,1780241454000,-1290.12,0.000224,2]
[423571693,1780241454000,-151.66,0.000222,2]
[423571709,1780241454000,-363.3486,0.000224,2]
[423571686,1780241454000,-497.74,0.00022122,7]
[423571685,1780241454000,-151.66,0.000221,2]
[423571684,1780241454000,-151.66,0.000221,2]
[423571688,1780241454000,-165.0,0.00022153,120]
[423571696,1780241454000,-497.74,0.00022272,7]
[423571699,1780241454000,-151.66,0.000223,2]
[423571697,1780241454000,-427.26,0.000223,7]
[423571698,1780241454000,-152.51,0.000223,2]
[423571700,1780241454000,-151.66,0.000223,2]
[423571687,1780241454000,-427.26,0.0002215,7]
[423571689,1780241454000,-497.74,0.00022172,7]
[423571690,1780241454000,-4861.11,0.00022192,2]
[423571708,1780241454000,-427.26,0.000224,7]
[423571692,1780241454000,-151.66,0.000222,2]
[423571691,1780241454000,-427.26,0.000222,7]
[423571695,1780241454000,-427.26,0.0002225,7]
[423571701,1780241454000,-500.0,0.00022315,2]
[423571702,1780241454000,-497.74,0.00022322,7]
[423571710,1780241454000,-226.48797684,0.000224,2]
[423571711,1780241454000,-1547.3999,0.000224,2]
[423571707,1780241454000,-497.74,0.00022372,7]
[423571712,1780241454000,-1512.7868,0.000224,2]
[423571704,1780241454000,-730.0,0.00022341,30]
[423571703,1780241454000,-194.0,0.00022332,120]
[423571705,1780241454000,-154.0,0.00022341,30]
[423571706,1780241454000,-427.26,0.0002235,7]
[423571694,1780241454000,-497.74,0.00022222,7]
[423571739,1780241454000,-497.74,0.00022622,7]
[423571736,1780241454000,-152.51,0.000226,2]
[423571742,1780241454000,-730.0,0.00022682,120]
[423571772,1780241454000,-151.0,0.00023444,2]
[423571775,1780241454000,-311.190034,0.00023444,2]
[423571768,1780241454000,-489.8765,0.00023444,2]
[423571780,1780241454000,-1714.686641,0.00023444,2]
[423571784,1780241454000,-415.610205,0.00023444,2]
[423571782,1780241454000,-1714.686641,0.00023444,2]
[423571783,1780241454000,-1714.686643,0.00023444,2]
[423571785,1780241454000,-415.610205,0.00023444,2]
[423571781,1780241454000,-1714.686641,0.00023444,2]
[423571779,1780241454000,-289.081126,0.00023444,2]
[423571786,1780241454000,-415.610205,0.00023444,2]
[423571793,1780241454000,-170.4771,0.000236,2]
[423571776,1780241454000,-311.190034,0.00023444,2]
[423571791,1780241454000,-249.463392,0.00023444,2]
[423571788,1780241454000,-249.463395,0.00023444,2]
[423571790,1780241454000,-249.463395,0.00023444,2]
[423571787,1780241454000,-415.610209,0.00023444,2]
[423571792,1780241454000,-500.0,0.0002349,2]
[423571796,1780241454000,-1016.4,0.000236,2]
[423571795,1780241454000,-455.75,0.000236,2]
[423571801,1780241454000,-2665.23314931,0.000238,7]
[423571800,1780241454000,-30000.0,0.000238,5]
[423571798,1780241454000,-154.0,0.00023682,120]
[423571799,1780241454000,-200.0,0.00023708,120]
[423571797,1780241454000,-730.0,0.00023682,120]
[423571748,1780241454000,-1000.0,0.00023,15]
[423571794,1780241454000,-307.17,0.000236,2]
[423571770,1780241454000,-151.0,0.00023444,2]
[423571789,1780241454000,-249.463395,0.00023444,2]
[423571769,1780241454000,-489.8765,0.00023444,2]
[423571767,1780241454000,-489.8765,0.00023444,2]
[423571750,1780241454000,-160.0,0.00023,2]
[423571741,1780241454000,-7056.82281403,0.00022651,2]
[423571749,1780241454000,-730.0,0.00023,2]
[423571738,1780241454000,-151.66,0.000226,2]
[423571740,1780241454000,-427.26,0.0002265,7]
[423571745,1780241454000,-7347.33879248,0.000228,2]
[423571752,1780241454000,-165.0,0.00023261,120]
[423571763,1780241454000,-500.0,0.00023444,2]
[423571764,1780241454000,-500.0,0.00023444,2]
[423571753,1780241454000,-730.0,0.00023341,30]
[423571751,1780241454000,-1030.0,0.00023,2]
[423571758,1780241454000,-191.087386,0.00023444,2]
[423571754,1780241454000,-154.0,0.00023341,30]
[423571762,1780241454000,-500.0,0.00023444,2]
[423571756,1780241454000,-164.0,0.000234,120]
[423571766,1780241454000,-489.8765,0.00023444,2]
[423571778,1780241454000,-151.0,0.00023444,2]
[423571771,1780241454000,-151.0,0.00023444,2]
[423571765,1780241454000,-500.0,0.00023444,2]
[423571774,1780241454000,-311.190034,0.00023444,2]
[423571777,1780241454000,-311.190037,0.00023444,2]
[423571773,1780241454000,-151.0,0.00023444,2]
[423571761,1780241454000,-191.087389,0.00023444,2]
[423571757,1780241454000,-838600.9235,0.00023444,2]
[423571759,1780241454000,-191.087386,0.00023444,2]
[423571755,1780241454000,-6183.65246075,0.00023395,2]
[423571760,1780241454000,-191.087386,0.00023444,2]
[423571856,1780241455000,-767.37531181,0.00025,30]
[423571853,1780241455000,-767.37531181,0.00025,3]
[423571836,1780241455000,-150.0,0.00025,2]
[423571833,1780241455000,-813.50402088,0.00024953,2]
[423571835,1780241455000,-19677.29142778,0.00025,3]
[423571839,1780241455000,-420.95829705,0.00025,5]
[423571845,1780241455000,-188.56153885,0.00025,120]
[423571838,1780241455000,-500.0,0.00025,2]
[423571844,1780241455000,-503.62925619,0.00025,14]
[423571842,1780241455000,-536.99857522,0.00025,120]
[423571840,1780241455000,-176.85689828,0.00025,30]
[423571841,1780241455000,-300.0,0.00025,30]
[423571837,1780241455000,-4500.0,0.00025,2]
[423571850,1780241455000,-160.0,0.00025,30]
[423571865,1780241455000,-190.0,0.00025,30]
[423571854,1780241455000,-160.0,0.00025,3]
[423571855,1780241455000,-160.0,0.00025,30]
[423571857,1780241455000,-730.7733533,0.00025,2]
[423571847,1780241455000,-2975.41921155,0.00025,30]
[423571851,1780241455000,-200.0,0.00025,120]